Cogmind - Beta 15 @@@ ROGUE MODE // 2025.07.01 @ 13:49:53 Player: Fangrelle Result: Destroyed by HC-YYO(R) with Subdweller Laser Performance ------------- Evolutions (0) 0 Regions Visited (3) 600 Robots Destroyed (44) 220 Value Destroyed (1129) 1129 Prototype IDs (11) 220 Alien Tech Used (0) 0 Bonus (-93) -93 TOTAL SCORE: 2076 Bonus ------- Friendly Fire -93 Cogmind --------- Core Integrity 0/250 Matter 243/300 Energy 75/100 System Corruption 5% Temperature Cool (6) Movement Treading (240) Ox1 Location -10/Subcaves Parts ------- > --- POWER (1) -------- (None) > --- PROPULSION (2) --- Light Treads > --- UTILITY (2) ------ Large Storage Unit > --- WEAPON (2) ------- Riot Gun Autogun (fused) > --- INVENTORY (15) --- Cargo Legs VTOL Module VTOL Module Humpback Hacking Suite EM Pulse Gun EM Pulse Gun Grenade Launcher Grenade Launcher Dirty Datajack (20) Datajack Multitool Makeshift Axe Peak State ------------ > --- POWER ------------ (None) > --- PROPULSION ------- Light Treads > --- UTILITY ---------- Disposable Heat Sink Large Storage Unit > --- WEAPON ----------- Slug Cannon Makeshift Axe > --- INVENTORY -------- VTOL Module VTOL Module VTOL Module VTOL Module Hacking Suite EM Pulse Gun EM Pulse Gun Autogun Autogun Grenade Launcher Grenade Launcher Grenade Launcher Dirty Datajack Datajack Multitool [Rating: 14] Favorites ----------- Power Ion Engine Engine Ion Engine Propulsion Light Treads Treads Light Treads Leg Aluminum Leg Utility Large Storage Unit Device Disposable Heat Sink Storage Large Storage Unit Processor Targeting Computer Weapon Autogun Energy Gun EM Pulse Gun Ballistic Gun Autogun Ballistic Cannon Slug Cannon Launcher Grenade Launcher Slashing Weapon Makeshift Axe Build | -11 -10 -10 -10 ------- Run | Yrd Mat Min Sub Slots Evolved . | . . . . Power . | . . . . Propulsion . | . . . . Utility . | . . . . Weapon . | . . . . Parts Attached 21 | . 12 2 7 Power 3 | . 3 . . Engine 3 | . 3 . . Core . | . . . . Reactor . | . . . . Propulsion 2 | . 2 . . Treads 2 | . 2 . . Leg . | . . . . Wheel . | . . . . Hover . | . . . . Flight . | . . . . Utility 4 | . 2 1 1 Device 1 | . . . 1 Storage 1 | . 1 . . Processor 2 | . 1 1 . Hackware . | . . . . Protection . | . . . . Artifact . | . . . . Weapon 12 | . 5 1 6 Energy Gun 3 | . 2 . 1 Energy Cannon . | . . . . Ballistic Gun 5 | . 3 1 1 Ballistic Cannon 1 | . . . 1 Launcher 2 | . . . 2 Special Weapon . | . . . . Impact Weapon . | . . . . Slashing Weapon 1 | . . . 1 Piercing Weapon . | . . . . Special Melee Weapon . | . . . . Unidentified Prototypes . | . . . . Parts Lost 6 | . 1 . 5 Power 1 | . . . 1 Propulsion 1 | . . . 1 Utility . | . . . . Weapon 4 | . 1 . 3 Highest Loss Streak 2 | . 1 . 2 To Critical Strikes . | . . . . Average Backups 14 | . 12 14 14 Power . | . . . . Propulsion 3 | . 2 4 3 Utility 1 | . 1 2 1 Weapon 6 | . 7 7 6 Tool/Special . | . . . . Unused Backups 31 | . 14 1 16 Power 2 | . 2 . . Propulsion 9 | . 4 . 5 Utility 3 | . 1 . 2 Weapon 13 | . 7 1 5 Tool/Special 4 | . . . 4 Average Slot Usage (%) 81 | . 98 100 72 Engine 9 | . 13 14 6 Treads 18 | . 26 28 14 Device 5 | . . . 7 Storage 14 | . 14 14 14 Processor 4 | . 12 14 . Energy Gun 1 | . 7 . . Ballistic Gun 21 | . 20 28 20 Slashing Weapon 3 | . . . 5 Peak Build Rating 14 | . 11 11 14 Average Rating 11 | . 9 10 11 On Entrance 8 | 6 6 11 11 Naked Turns . | . . . . Heaviest Build 32 | 11 31 31 32 Greatest Support 40 | 20 40 40 40 Greatest Overweight (x) 1 | . . . 1 Average Overweight (x) . | . . . . Largest Inventory Capacity 15 | . 15 15 15 Average Capacity 14 | . 13 15 15 Most Carried 15 | . 15 15 15 Average Carried 14 | . 12 14 14 Final Capacity 15 | 8 15 15 15 Final Carried 15 | 6 15 15 15 Class Distribution -------------------- 100% | Mutant Dominant Class ---------------- Mutant | -10/Materials Mutant | -10/Mines Mutant | -10/Subcaves Resources | -11 -10 -10 -10 ----------- Run | Yrd Mat Min Sub Matter Collected 1302 | 200 323 130 649 Remotely . | . . . . Salvage Created 1538 | . 719 91 728 Parts 107 | . 57 3 47 Haulers Intercepted 1 | . 1 . . Recyclers Shooed . | . . . . Parts Field Recycled . | . . . . Retrieved Matter . | . . . . Parts Self-Destructed 20 | . . . 20 Prevented . | . . . . Kills | -11 -10 -10 -10 ------- Run | Yrd Mat Min Sub Combat Hostiles Destroyed 37 | . 18 2 17 Guns 31 | . 17 2 12 Cannons 2 | . . . 2 AOE 4 | . 1 . 3 Classes Destroyed 9 | . 6 . 3 Worker 2 | . 2 . . Hauler 1 | . 1 . . Operator 1 | . 1 . . Watcher 3 | . 3 . . Swarmer 13 | . 9 . 4 Grunt 13 | . 9 2 2 Artisan 3 | . . . 3 Cobbler 1 | . . . 1 Subdweller 11 | . . . 11 Best Kill Streak 7 | . 7 3 4 Combat Bots Only 7 | . 7 2 4 Max Kills in Single Turn 2 | . 2 1 2 Gunslinging 1 | . 1 . . Exploded 2 | . 1 . 2 Melee . | . . . . Uniques/NPCs Destroyed . | . . . . Combat | -11 -10 -10 -10 -------- Run | Yrd Mat Min Sub Hostile Shots Fired 139 | . 54 9 76 Missed 51 | . 16 3 32 Hits 88 | . 38 6 44 Projectile 88 | . 38 6 44 AOE 5 | . . . 5 Damage Taken 1366 | . 405 85 876 Core 262 | . 97 . 165 Absorbed by Shields . | . . . . Core Remaining (%) 100 | 100 . . . Volleys Fired 108 | . 52 7 49 Largest 2 | . 2 2 2 Hottest 80 | . 80 46 63 Shots Fired 206 | . 103 15 88 Gun 195 | . 103 15 77 Cannon 9 | . . . 9 Launcher 2 | . . . 2 Special . | . . . . Kinetic 161 | . 60 15 86 Thermal 6 | . 6 . . Explosive 2 | . . . 2 Electromagnetic 37 | . 37 . . Robot Hit Streak 9 | . 8 9 8 Robot Miss Streak 4 | . 4 2 3 Penetration Max . | . . . . Secondary Targets 7 | . 6 . 1 Max Gunslinging Chain 1 | . 1 . 1 Shots Hit Robots 129 | . 54 9 66 Core Hits 66 | . 33 5 28 Critical Kills 1 | . . . 1 Critical Parts Destroyed 1 | . 1 . . Critical Strikes 2 | . 1 . 1 Destroy 2 | . 1 . 1 Melee Attacks 27 | . . . 27 Impact . | . . . . Slashing 27 | . . . 27 Piercing . | . . . . Sneak Attacks 9 | . . . 9 Combat Hostiles . | . . . . Follow-up Attacks . | . . . . Damage Inflicted 2591 | . 871 132 1588 Guns 1651 | . 813 132 706 Cannons 63 | . . . 63 Explosions 211 | . 58 . 153 Melee 666 | . . . 666 Ramming . | . . . . Kinetic 1377 | . 476 132 769 Thermal 108 | . 108 . . Explosive 153 | . . . 153 Electromagnetic 287 | . 287 . . Impact . | . . . . Slashing 666 | . . . 666 Piercing . | . . . . Highest Corruption 5 | . 5 5 5 Average Corruption 4 | . 4 5 5 Corruption Purged . | . . . . Corruption Blocked . | . . . . Effects 158 | . 3 25 130 Message Errors 40 | . 2 7 31 Matter Fused 31 | . . 6 25 Heat Flow Errors 15 | . . 5 10 Energy Discharges 19 | . . 1 18 Parts Fused 1 | . . . 1 Data Loss (minor) 26 | . 1 1 24 Data Loss (major) 15 | . . 3 12 Misfires 6 | . . 1 5 Alerts 5 | . . 1 4 Overload Shots . | . . . . Overflow Damage 170 | . . . 170 Projectiles . | . . . . Explosions . | . . . . Melee 170 | . . . 170 Knockbacks . | . . . . Impact . | . . . . Kinetic . | . . . . Secondary . | . . . . Self-Inflicted Damage 16 | . . . 16 Shots 1 | . . . 1 Rammed . | . . . . Targets Rammed . | . . . . Kicked . | . . . . Crushed . | . . . . Highest Temperature 178 | . 142 178 174 Average Temperature 51 | . 42 55 79 Received Heat Transfer 384 | . 132 48 204 Siege Activations . | . . . . Martial Activations . | . . . . Shielding Activations . | . . . . Robots Disrupted . | . . . . Combat Hostiles . | . . . . Robots Corrupted . | . . . . Combat Hostiles . | . . . . Parts Fried 1 | . 1 . . Impact Corruptions . | . . . . Robots Melted . | . . . . Combat Hostiles . | . . . . Parts Melted 1 | . 1 . . Heat Transferred 198 | . 198 . . Parts Sabotaged . | . . . . Parts Stolen . | . . . . Parts Stripped . | . . . . Power Chain Reactions 1 | . 1 . . Alert | -11 -10 -10 -10 ------- Run | Yrd Mat Min Sub Maximum Alert Level . | . . . . Low Security (%) 100 | . 100 100 . Level 1 . | . . . . Level 2 . | . . . . Level 3 . | . . . . Level 4 . | . . . . Level 5 . | . . . . High Security . | . . . . Max Security . | . . . . Peak Influence 198 | . 198 106 . Initial 56 | . . 56 . Average 40 | . 62 10 . Influence Increases 787 | . 577 50 160 Destroy 0b10 Robot/C 520 | . 360 40 120 Destroy 0b10 Robot/NC 35 | . 35 . . Destroy Leader 98 | . 78 10 10 Successful Hack 39 | . 39 . . Select Force Hacks 30 | . 30 . . Disable Machine 15 | . 15 . . Destroy Structure 5 | . 5 . . Lose Combat Pursuer 45 | . 15 . 30 Influence Decreases 787 | . 432 195 160 Entered New Map 89 | . . 89 . Time Decay 648 | . 422 106 120 Lost Part 50 | . 10 . 40 Squads Dispatched 3 | . 3 . . Investigation 2 | . 2 . . Extermination . | . . . . Reinforcement 1 | . 1 . . Assault . | . . . . Garrison . | . . . . Intercept . | . . . . Searches Triggered . | . . . . Construction Impeded . | . . . . Haulers Reinforced . | . . . . Active Scanning Responses . | . . . . Cargo Convoy Interrupts . | . . . . Stealth | -11 -10 -10 -10 --------- Run | Yrd Mat Min Sub Distress Signals 1 | . 1 . . Communications Jammed . | . . . . Distress Signals . | . . . . Times Spotted 45 | . 23 2 20 Peak Tracking Total 6 | . 4 2 6 Tactical Retreats 2 | . 1 . 1 Traps | -11 -10 -10 -10 ------- Run | Yrd Mat Min Sub Traps Triggered 3 | . 3 . . Indirectly . | . . . . Trap Hack Attempts . | . . . . Triggered . | . . . . Disarmed . | . . . . Reprogrammed . | . . . . Reused . | . . . . Traps Extracted . | . . . . Installed 4 | . . 4 . Triggered . | . . . . Machines | -11 -10 -10 -10 ---------- Run | Yrd Mat Min Sub Machines Disabled 2 | . 1 . 1 Max in Single Turn 1 | . 1 . 1 Machines Repaired . | . . . . Machines Dismantled . | . . . . Machines Sabotaged . | . . . . Overloaded Fab Kills . | . . . . Hacking | -11 -10 -10 -10 --------- Run | Yrd Mat Min Sub Machines Accessed 11 | . 9 . 2 Terminals 7 | . 7 . . Fabricators . | . . . . Repair Stations . | . . . . Recycling Units 2 | . 2 . . Scanalyzers . | . . . . Garrison Access . | . . . . Total Hacks 47 | . 33 . 14 Successful 34 | . 20 . 14 Failed 13 | . 13 . . Catastrophic . | . . . . Database Lockouts . | . . . . Manual 30 | . 30 . . Terminals 22 | . 22 . . Fabricators . | . . . . Repair Stations . | . . . . Recycling Units 11 | . 11 . . Scanalyzers . | . . . . Garrison Access . | . . . . Terminal Hacks 14 | . . . 14 Record 13 | . . . 13 Proto ID Catalog 1 | . . . 1 Fabricator Hacks . | . . . . Repair Station Hacks . | . . . . Recycling Unit Hacks 2 | . 2 . . Report Inventory 1 | . 1 . . Retrieve Components 1 | . 1 . . Scanalyzer . | . . . . Garrison Access Hacks . | . . . . Unauthorized Hacks 18 | . 18 . . Terminals 12 | . 12 . . Assimilate 4 | . 4 . . Botnet 5 | . 5 . . Operators 2 | . 2 . . Skim 1 | . 1 . . Fabricators . | . . . . Repair Stations . | . . . . Recycling Units 6 | . 6 . . Monitor 1 | . 1 . . Reject 1 | . 1 . . Recyclers 2 | . 2 . . Mask 1 | . 1 . . Tunnel 1 | . 1 . . Scanalyzers . | . . . . Garrison Access . | . . . . Data Cores Recovered . | . . . . Used . | . . . . Hacking Detections 8 | . 8 . . Full Trace Events 1 | . 1 . . Feedback Events . | . . . . Feedback Blocked . | . . . . Robot Schematics Acquired . | . . . . Robots Built . | . . . . Authchips . | . . . . Time . | . . . . Total Robot Build Rating . | . . . . Part Schematics Acquired . | . . . . Parts Built . | . . . . Authchips . | . . . . Time . | . . . . Total Part Build Rating . | . . . . Parts Repaired . | . . . . Time . | . . . . Parts Recycled . | . . . . Recycled Matter . | . . . . Retrieved Matter . | . . . . Retrieved Components 9 | . 9 . . Parts Scanalyzed . | . . . . Part Schematics Acquired . | . . . . Parts Damaged . | . . . . Bothacking | -11 -10 -10 -10 ------------ Run | Yrd Mat Min Sub Used RIF Installer . | . . . . Robots Hacked . | . . . . Non-combat . | . . . . Combat . | . . . . Robot Hacks Applied . | . . . . Relay Couplers Released . | . . . . Fabnet Peak Effective % . | . . . . Robots Rewired . | . . . . Allies Hacked . | . . . . Hacks Repelled . | . . . . Allies | -11 -10 -10 -10 -------- Run | Yrd Mat Min Sub Total Allies 1 | . 1 . . Largest Group 1 | . 1 1 1 Highest-Rated Group 10 | . 10 10 10 Highest-Rated Ally 10 | . 10 10 10 Total Orders 3 | . . 2 1 STAY 2 | . . 1 1 FOLLOW 1 | . . 1 . Ally Attacks . | . . . . Total Damage . | . . . . Kills . | . . . . Allies Corrupted . | . . . . Allies Melted . | . . . . Intel | -11 -10 -10 -10 ------- Run | Yrd Mat Min Sub Active Infowar (turns) . | . . . . Robot Analysis Total . | . . . . Derelict Logs Recovered 2 | . . 2 . Drone Launches . | . . . . Drone Recoveries . | . . . . Exploration | -11 -10 -10 -10 ------------- Run | Yrd Mat Min Sub Turns Passed 8132 | . 1530 1133 5469 Spaces Moved 3720 | 1 793 691 2235 Core . | . . . . Treads 3685 | . 759 691 2235 Legs 35 | 1 34 . . Wheels . | . . . . Hover . | . . . . Flight . | . . . . Fastest Speed 120 | 120 120 160 160 Average Speed 204 | 120 158 160 235 Slowest Speed 240 | 120 160 160 240 Overloaded Moves . | . . . . Propulsion Burnouts . | . . . . Robots Hopped . | . . . . Potential Cave-ins . | . . . . Cave-ins Triggered . | . . . . Exploration Rate (%) 70 | 1 97 99 83 Regions Visited 3 Branch Regions 2 Pre-discovered Areas 3 | . 1 1 1 Known Exits Taken 1 | . . 1 . Unknown Exits Taken 2 | 1 1 . . Scrap Searched 6 | . . 3 3 Spaces Dug . | . . . . Terrain Destroyed 8 | . 2 . 6 Melee . | . . . . Projectile 2 | . . . 2 AOE 6 | . 2 . 4 Terrain Rammed . | . . . . Walls Destroyed . | . . . . Machines Disabled . | . . . . Actions | -11 -10 -10 -10 --------- Run | Yrd Mat Min Sub Total 4045 | . 986 709 2350 Wait 93 | . 86 . 7 Move 3717 | . 792 690 2235 Hop . | . . . . Pick Up 34 | . 23 3 8 Fast Attach 7 | . 6 . 1 Attach 9 | . 3 2 4 Detach . | . . . . Swap 13 | . 3 . 10 Drop 33 | . 21 3 9 Fire 108 | . 52 7 49 Melee 27 | . . . 27 Ram . | . . . . Kick . | . . . . Crush . | . . . . Escape Stasis . | . . . . Rewire . | . . . . Trap 4 | . . 4 . Miscellaneous . | . . . . Route ------- -11/Scrapyard -10/Materials (discovered 5 exits: *Mat x3 / [*Min x2]) -10/Mines (discovered 3 exits: *Mat x2 / *Sub) -10/Subcaves (discovered 1 exit: *Mat) History --------- Turn | Location | Event 1 | -11/Scrapyard | Discovered new exit (range 0) 1 | -11/Scrapyard | Entered Materials 317 | -10/Materials | Build established: Mutant 372 | -10/Materials | Discovered new exit (range 6) 444 | -10/Materials | Discovered new exit (range 6) 447 | -10/Materials | Discovered new exit (range 15) 1122 | -10/Materials | Discovered new exit (range 16) 1236 | -10/Materials | Destroyed 7 combat bots 1356 | -10/Materials | Discovered new exit (range 10) 1531 | -10/Materials | Entered Mines 1531 | -10/Mines | Accompanied by 1 ally 1609 | -10/Mines | Met a Derelict bent on vengeance 1661 | -10/Mines | A weapon hastily lodged in a ceiling crevice suddenly fell to the ground 1804 | -10/Mines | Learned location of Storage (-7) 1833 | -10/Mines | Found a hidden stash of uninstalled traps 2041 | -10/Mines | Discovered new exit (range 9) 2074 | -10/Mines | Identified exit to Materials 2098 | -10/Mines | Discovered exit to Materials (range 5) 2209 | -10/Mines | YI-UF0 nonchalantly dropped a Grenade Launcher on the ground 2217 | -10/Mines | Learned Materials terminal intel 2511 | -10/Mines | Discovered new exit (range 12) 2530 | -10/Mines | Identified exit to Subcaves 2664 | -10/Mines | Entered Subcaves 2664 | -10/Subcaves | Accompanied by 1 ally 2668 | -10/Subcaves | Discovered new exit (range 8) 2695 | -10/Subcaves | Identified exit to Materials 3153 | -10/Subcaves | Core integrity fell below 50% 4791 | -10/Subcaves | Shifting Twisted Machinery released Sub. Machine Gun 4802 | -10/Subcaves | Learned location of Zion (-6) 4802 | -10/Subcaves | Met a Zionite searching for "candidates" 5072 | -10/Subcaves | Visited Clippyterm 5079 | -10/Subcaves | Learned 40 Factory zone layouts 5079 | -10/Subcaves | Learned Factory emergency access door positions 5200 | -10/Subcaves | Ambushed by Subdwellers from Twisted Machinery 5901 | -10/Subcaves | Core integrity fell below 20% 6368 | -10/Subcaves | Visited 4L-MR0's lab 6410 | -10/Subcaves | Found Cargo Legs 8133 | -10/Subcaves | Destroyed by HC-YYO(R) with Subdweller Laser Last Messages --------------- 07556_ T9GU 07627_ W6-7F7(u) builds Twisted Machinery. 07627_ Sneak attack on W6-7F7(u). 07641_ System corrupted: Matter fused (-7). 07671_ QQXE99DCT ETL EQJR%BFAGR9NZ6#OYYT